[Event "Estonian Chess Championship 2022"]
[Site "Tallinn, Paul Keres Chess House, Estonia"]
[Date "2022.12.15"]
[Round "6.3"]
[White "Kiik, Kalle"]
[Black "Kulaots, Kaido"]
[Result "0-1"]
[TimeControl "90 minutes for first 40 moves and 15 min. for the rest of the game with 30 sec. increment from move 1"]
[WhiteTitle "IM"]
[BlackTitle "GM"]
[WhiteFideId "4500075"]
[BlackFideId "4500261"]
[WhiteElo "2369"]
[BlackElo "2513"]

1. d4 {

[%clk 01:30:58]

} {

[%emt 00:00:01]

} Nf6 {

[%clk 01:29:32]

} {

[%emt 00:01:27]

} 2. Nc3 {

[%clk 01:30:23]

} {

[%emt 00:01:06]

} d5 {

[%clk 01:28:18]

} {

[%emt 00:01:44]

} 3. Bf4 {

[%clk 01:30:30]

} {

[%emt 00:00:22]

} c5 {

[%clk 01:22:58]

} {

[%emt 00:05:50]

} 4. e4 {

[%clk 01:24:15]

} {

[%emt 00:06:46]

} Nxe4 {

[%clk 01:10:58]

} {

[%emt 00:12:30]

} 5. Nxe4 {

[%clk 01:23:34]

} {

[%emt 00:01:11]

} dxe4 {

[%clk 01:11:23]

} {

[%emt 00:00:06]

} 6. dxc5 {

[%clk 01:23:57]

} {

[%emt 00:00:07]

} Qa5+ {

[%clk 01:02:06]

} {

[%emt 00:09:46]

} 7. c3 {

[%clk 01:24:05]

} {

[%emt 00:00:22]

} Qxc5 {

[%clk 01:00:56]

} {

[%emt 00:01:41]

} 8. Qa4+ {

[%clk 01:24:29]

} {

[%emt 00:00:06]

} Nc6 {

[%clk 00:57:56]

} {

[%emt 00:03:30]

} 9. Qxe4 {

[%clk 01:24:50]

} {

[%emt 00:00:07]

} g6 {

[%clk 00:56:48]

} {

[%emt 00:01:39]

} 10. Rd1 {

[%clk 01:08:45]

} {

[%emt 00:16:35]

} Bg7 {

[%clk 00:42:00]

} {

[%emt 00:15:18]

} 11. Be3 {

[%clk 01:01:01]

} {

[%emt 00:08:13]

} Qa5 {

[%clk 00:41:23]

} {

[%emt 00:01:07]

} 12. Bc4 {

[%clk 01:00:53]

} {

[%emt 00:00:38]

} Bf5 {

[%clk 00:38:42]

} {

[%emt 00:03:10]

} 13. Qd5 {

[%clk 00:59:40]

} {

[%emt 00:01:44]

} O-O {

[%clk 00:38:47]

} {

[%emt 00:00:26]

} 14. Qxa5 {

[%clk 00:47:52]

} {

[%emt 00:12:18]

} Nxa5 {

[%clk 00:39:11]

} {

[%emt 00:00:06]

} 15. Bd5 {

[%clk 00:48:04]

} {

[%emt 00:00:17]

} e6 {

[%clk 00:37:03]

} {

[%emt 00:02:38]

} 16. Bf3 {

[%clk 00:47:26]

} {

[%emt 00:01:08]

} Nc4 {

[%clk 00:37:11]

} {

[%emt 00:00:22]

} 17. Bc1 {

[%clk 00:37:00]

} {

[%emt 00:10:56]

} Bc2 {

[%clk 00:29:59]

} {

[%emt 00:07:42]

} 18. Rd7 {

[%clk 00:35:39]

} {

[%emt 00:01:50]

} Ne5 {

[%clk 00:21:05]

} {

[%emt 00:09:26]

} 19. Rd2 {

[%clk 00:30:16]

} {

[%emt 00:05:52]

} Nd3+ {

[%clk 00:20:13]

} {

[%emt 00:01:23]

} 20. Kf1 {

[%clk 00:29:20]

} {

[%emt 00:01:25]

} Bb1 {

[%clk 00:20:20]

} {

[%emt 00:00:23]

} 21. Ne2 {

[%clk 00:26:00]

} {

[%emt 00:03:50]

} Rfd8 {

[%clk 00:15:10]

} {

[%emt 00:05:41]

} 22. g3 {

[%clk 00:09:35]

} {

[%emt 00:16:54]

} Nxc1 {

[%clk 00:14:33]

} {

[%emt 00:01:07]

} 23. Rxd8+ {

[%clk 00:09:57]

} {

[%emt 00:00:08]

} Rxd8 {

[%clk 00:15:00]

} {

[%emt 00:00:03]

} 24. Nxc1 {

[%clk 00:10:15]

} {

[%emt 00:00:12]

} Rd2 {

[%clk 00:15:12]

} {

[%emt 00:00:18]

} 25. Kg2 {

[%clk 00:08:31]

} {

[%emt 00:02:14]

} Rxb2 {

[%clk 00:15:18]

} {

[%emt 00:00:24]

} 26. Rd1 {

[%clk 00:08:35]

} {

[%emt 00:00:25]

} Bxc3 {

[%clk 00:14:39]

} {

[%emt 00:01:10]

} 0-1

[Event "Estonian Chess Championship 2022"]
[Site "Tallinn, Paul Keres Chess House, Estonia"]
[Date "2022.12.15"]
[Round "6.4"]
[White "Volodin, Aleksandr"]
[Black "Sirosh, Ilja"]
[Result "1-0"]
[TimeControl "90 minutes for first 40 moves and 15 min. for the rest of the game with 30 sec. increment from move 1"]
[WhiteTitle "GM"]
[BlackTitle "IM"]
[WhiteFideId "4501950"]
[BlackFideId "4500458"]
[WhiteElo "2440"]
[BlackElo "2386"]

1. d4 {

[%clk 01:30:59]

} {

[%emt 00:07:06]

} d5 {

[%clk 01:30:54]

} {

[%emt 00:00:07]

} 2. c4 {

[%clk 01:31:11]

} {

[%emt 00:00:17]

} e6 {

[%clk 01:31:18]

} {

[%emt 00:00:06]

} 3. Nf3 {

[%clk 01:31:35]

} {

[%emt 00:00:06]

} Nf6 {

[%clk 01:31:40]

} {

[%emt 00:00:08]

} 4. g3 {

[%clk 01:31:59]

} {

[%emt 00:00:07]

} Be7 {

[%clk 01:31:57]

} {

[%emt 00:00:12]

} 5. Bg2 {

[%clk 01:32:08]

} {

[%emt 00:00:21]

} O-O {

[%clk 01:32:20]

} {

[%emt 00:00:07]

} 6. O-O {

[%clk 01:31:18]

} {

[%emt 00:01:19]

} c6 {

[%clk 01:32:45]

} {

[%emt 00:00:05]

} 7. Qc2 {

[%clk 01:31:09]

} {

[%emt 00:00:39]

} b6 {

[%clk 01:33:09]

} {

[%emt 00:00:07]

} 8. Nbd2 {

[%clk 01:28:38]

} {

[%emt 00:03:01]

} c5 {

[%clk 01:33:02]

} {

[%emt 00:00:37]

} 9. dxc5 {

[%clk 01:20:17]

} {

[%emt 00:08:52]

} bxc5 {

[%clk 01:33:24]

} {

[%emt 00:00:08]

} 10. e4 {

[%clk 01:20:30]

} {

[%emt 00:00:17]

} Nc6 {

[%clk 01:28:56]

} {

[%emt 00:04:58]

} 11. a3 {

[%clk 01:17:48]

} {

[%emt 00:03:12]

} d4 {

[%clk 00:54:05]

} {

[%emt 00:35:20]

} 12. e5 {

[%clk 01:10:36]

} {

[%emt 00:07:42]

} Nd7 {

[%clk 00:53:51]

} {

[%emt 00:00:45]

} 13. Ne1 {

[%clk 01:03:45]

} {

[%emt 00:07:21]

} Qc7 {

[%clk 00:38:04]

} {

[%emt 00:16:16]

} 14. Nd3 {

[%clk 01:03:34]

} {

[%emt 00:00:40]

} Rb8 {

[%clk 00:38:18]

} {

[%emt 00:00:16]

} 15. f4 {

[%clk 01:02:47]

} {

[%emt 00:01:16]

} Rd8 {

[%clk 00:34:12]

} {

[%emt 00:04:36]

} 16. Rb1 {

[%clk 00:58:33]

} {

[%emt 00:04:45]

} Nf8 {

[%clk 00:28:22]

} {

[%emt 00:06:20]

} 17. Ne4 {

[%clk 00:51:50]

} {

[%emt 00:07:13]

} Na5 {

[%clk 00:25:40]

} {

[%emt 00:03:11]

} 18. b3 {

[%clk 00:52:06]

} {

[%emt 00:00:14]

} Bd7 {

[%clk 00:22:00]

} {

[%emt 00:04:10]

} 19. Qa2 {

[%clk 00:51:30]

} {

[%emt 00:01:07]

} f5 {

[%clk 00:14:37]

} {

[%emt 00:07:54]

} 20. exf6 {

[%clk 00:49:10]

} {

[%emt 00:02:49]

} gxf6 {

[%clk 00:15:05]

} {

[%emt 00:00:02]

} 21. f5 {

[%clk 00:46:51]

} {

[%emt 00:02:49]

} exf5 {

[%clk 00:09:53]

} {

[%emt 00:05:42]

} 22. Bf4 {

[%clk 00:46:37]

} {

[%emt 00:00:44]

} Qb6 {

[%clk 00:10:20]

} {

[%emt 00:00:03]

} 23. Nexc5 {

[%clk 00:45:26]

} {

[%emt 00:01:41]

} Bxc5 {

[%clk 00:05:41]

} {

[%emt 00:05:08]

} 24. Bxb8 {

[%clk 00:45:45]

} {

[%emt 00:00:12]

} 1-0

[Event "Estonian Chess Championship 2022"]
[Site "Tallinn, Paul Keres Chess House, Estonia"]
[Date "2022.12.15"]
[Round "6.5"]
[White "Seeman, Tarvo"]
[Black "Rychagov, Nikita"]
[Result "1-0"]
[TimeControl "90 minutes for first 40 moves and 15 min. for the rest of the game with 30 sec. increment from move 1"]
[WhiteTitle "IM"]
[WhiteFideId "4500547"]
[BlackFideId "4508394"]
[WhiteElo "2405"]
[BlackElo "2180"]

1. c4 {

[%clk 01:30:52]

} {

[%emt 00:00:07]

} e5 {

[%clk 01:30:57]

} {

[%emt 00:00:04]

} 2. g3 {

[%clk 01:31:09]

} {

[%emt 00:00:13]

} Nf6 {

[%clk 01:31:23]

} {

[%emt 00:00:05]

} 3. Bg2 {

[%clk 01:31:33]

} {

[%emt 00:00:05]

} d5 {

[%clk 01:31:46]

} {

[%emt 00:00:08]

} 4. cxd5 {

[%clk 01:31:57]

} {

[%emt 00:00:05]

} Nxd5 {

[%clk 01:32:11]

} {

[%emt 00:00:07]

} 5. Nf3 {

[%clk 01:32:21]

} {

[%emt 00:00:05]

} Nc6 {

[%clk 01:32:36]

} {

[%emt 00:00:06]

} 6. O-O {

[%clk 01:32:43]

} {

[%emt 00:00:06]

} Nb6 {

[%clk 01:33:00]

} {

[%emt 00:00:07]

} 7. b3 {

[%clk 01:33:08]

} {

[%emt 00:00:05]

} Be6 {

[%clk 01:33:27]

} {

[%emt 00:00:04]

} 8. Bb2 {

[%clk 01:33:32]

} {

[%emt 00:00:05]

} f6 {

[%clk 01:33:54]

} {

[%emt 00:00:03]

} 9. Nc3 {

[%clk 01:33:54]

} {

[%emt 00:00:07]

} Qd7 {

[%clk 01:34:18]

} {

[%emt 00:00:06]

} 10. Rc1 {

[%clk 01:34:19]

} {

[%emt 00:00:05]

} O-O-O {

[%clk 01:34:42]

} {

[%emt 00:00:06]

} 11. Qc2 {

[%clk 01:34:45]

} {

[%emt 00:00:04]

} Kb8 {

[%clk 01:35:10]

} {

[%emt 00:00:03]

} 12. Rfd1 {

[%clk 01:34:56]

} {

[%emt 00:00:18]

} Qc8 {

[%clk 01:35:36]

} {

[%emt 00:00:05]

} 13. Ne4 {

[%clk 01:33:05]

} {

[%emt 00:02:20]

} Bd5 {

[%clk 01:35:52]

} {

[%emt 00:00:16]

} 14. d3 {

[%clk 01:28:59]

} {

[%emt 00:04:35]

} Be7 {

[%clk 01:33:06]

} {

[%emt 00:03:17]

} 15. Nc5 {

[%clk 01:20:02]

} {

[%emt 00:09:26]

} Bxc5 {

[%clk 01:22:14]

} {

[%emt 00:11:22]

} 16. Qxc5 {

[%clk 01:20:21]

} {

[%emt 00:00:10]

} h5 {

[%clk 01:21:49]

} {

[%emt 00:00:56]

} 17. h4 {

[%clk 01:13:03]

} {

[%emt 00:07:47]

} Rhe8 {

[%clk 01:19:18]

} {

[%emt 00:03:02]

} 18. e4 {

[%clk 01:03:41]

} {

[%emt 00:09:51]

} Be6 {

[%clk 01:17:08]

} {

[%emt 00:02:42]

} 19. d4 {

[%clk 01:03:54]

} {

[%emt 00:00:15]

} Bh3 {

[%clk 01:13:42]

} {

[%emt 00:03:58]

} 20. dxe5 {

[%clk 00:50:05]

} {

[%emt 00:14:18]

} Bxg2 {

[%clk 01:11:26]

} {

[%emt 00:02:47]

} 21. Rxd8 {

[%clk 00:43:10]

} {

[%emt 00:07:25]

} Qxd8 {

[%clk 01:11:43]

} {

[%emt 00:00:13]

} 22. Kxg2 {

[%clk 00:43:30]

} {

[%emt 00:00:09]

} Nd7 {

[%clk 01:12:08]

} {

[%emt 00:00:06]

} 23. Qd5 {

[%clk 00:37:58]

} {

[%emt 00:06:00]

} Ndxe5 {

[%clk 01:12:15]

} {

[%emt 00:00:24]

} 24. Bxe5 {

[%clk 00:35:10]

} {

[%emt 00:03:17]

} fxe5 {

[%clk 01:11:50]

} {

[%emt 00:00:56]

} 25. Qxd8+ {

[%clk 00:32:56]

} {

[%emt 00:02:43]

} Nxd8 {

[%clk 01:11:46]

} {

[%emt 00:00:35]

} 26. Ng5 {

[%clk 00:15:54]

} {

[%emt 00:17:31]

} c6 {

[%clk 01:08:03]

} {

[%emt 00:04:13]

} 27. f4 {

[%clk 00:16:04]

} {

[%emt 00:00:19]

} Kc7 {

[%clk 01:04:38]

} {

[%emt 00:03:56]

} 28. Kf3 {

[%clk 00:16:01]

} {

[%emt 00:00:32]

} b6 {

[%clk 01:00:39]

} {

[%emt 00:04:30]

} 29. b4 {

[%clk 00:15:21]

} {

[%emt 00:01:10]

} Ne6 {

[%clk 00:55:32]

} {

[%emt 00:05:36]

} 30. Ke3 {

[%clk 00:06:23]

} {

[%emt 00:09:28]

} exf4+ {

[%clk 00:45:50]

} {

[%emt 00:10:12]

} 31. gxf4 {

[%clk 00:06:46]

} {

[%emt 00:00:06]

} Nxg5 {

[%clk 00:46:12]

} {

[%emt 00:00:09]

} 32. hxg5 {

[%clk 00:06:50]

} {

[%emt 00:00:24]

} Rh8 {

[%clk 00:45:27]

} {

[%emt 00:01:16]

} 33. f5 {

[%clk 00:04:00]

} {

[%emt 00:03:20]

} Kd6 {

[%clk 00:45:10]

} {

[%emt 00:00:49]

} 34. Kf4 {

[%clk 00:04:06]

} {

[%emt 00:00:23]

} h4 {

[%clk 00:45:25]

} {

[%emt 00:00:16]

} 35. e5+ {

[%clk 00:04:21]

} {

[%emt 00:00:15]

} Ke7 {

[%clk 00:42:51]

} {

[%emt 00:03:04]

} 36. Rxc6 {

[%clk 00:02:51]

} {

[%emt 00:01:59]

} h3 {

[%clk 00:43:19]

} {

[%emt 00:00:02]

} 37. Rc7+ {

[%clk 00:03:04]

} {

[%emt 00:00:17]

} Kd8 {

[%clk 00:43:41]

} {

[%emt 00:00:08]

} 38. Rc1 {

[%clk 00:03:18]

} {

[%emt 00:00:13]

} h2 {

[%clk 00:42:12]

} {

[%emt 00:02:01]

} 39. Rh1 {

[%clk 00:03:39]

} {

[%emt 00:00:08]

} Rh4+ {

[%clk 00:42:24]

} {

[%emt 00:00:19]

} 40. Kg3 {

[%clk 00:18:57]

} {

[%emt 00:00:11]

} Re4 {

[%clk 00:57:49]

} {

[%emt 00:00:07]

} 41. Rxh2 {

[%clk 00:17:29]

} {

[%emt 00:01:57]

} Rxe5 {

[%clk 00:58:17]

} {

[%emt 00:00:04]

} 42. Kf4 {

[%clk 00:16:58]

} {

[%emt 00:00:59]

} Rb5 {

[%clk 00:58:39]

} {

[%emt 00:00:09]

} 43. Rh7 {

[%clk 00:16:41]

} {

[%emt 00:00:46]

} Rxb4+ {

[%clk 00:59:07]

} {

[%emt 00:00:03]

} 44. Ke5 {

[%clk 00:16:57]

} {

[%emt 00:00:13]

} Ra4 {

[%clk 00:59:20]

} {

[%emt 00:00:18]

} 45. Rxg7 {

[%clk 00:17:05]

} {

[%emt 00:00:20]

} Rxa2 {

[%clk 00:59:44]

} {

[%emt 00:00:08]

} 46. g6 {

[%clk 00:17:02]

} {

[%emt 00:00:31]

} Re2+ {

[%clk 00:59:54]

} {

[%emt 00:00:22]

} 47. Kf6 {

[%clk 00:16:54]

} {

[%emt 00:00:37]

} a5 {

[%clk 01:00:01]

} {

[%emt 00:00:25]

} 48. Ra7 {

[%clk 00:16:17]

} {

[%emt 00:01:04]

} 1-0

[Event "Estonian Chess Championship 2022"]
[Site "Tallinn, Paul Keres Chess House, Estonia"]
[Date "2022.12.16"]
[Round "7.1"]
[White "Rychagov, Nikita"]
[Black "Kanep, Meelis"]
[Result "1/2-1/2"]
[TimeControl "90 minutes for first 40 moves and 15 min. for the rest of the game with 30 sec. increment from move 1"]
[BlackTitle "GM"]
[WhiteFideId "4508394"]
[BlackFideId "4501047"]
[WhiteElo "2180"]
[BlackElo "2412"]

1. e4 {

[%clk 01:27:46]

} {

[%emt 00:03:13]

} g6 {

[%clk 01:29:27]

} {

[%emt 00:01:33]

} 2. d4 {

[%clk 01:28:11]

} {

[%emt 00:00:05]

} d6 {

[%clk 01:29:44]

} {

[%emt 00:00:13]

} 3. Nc3 {

[%clk 01:28:05]

} {

[%emt 00:00:37]

} c6 {

[%clk 01:29:49]

} {

[%emt 00:00:24]

} 4. f4 {

[%clk 01:28:20]

} {

[%emt 00:00:15]

} d5 {

[%clk 01:30:08]

} {

[%emt 00:00:11]

} 5. e5 {

[%clk 01:28:46]

} {

[%emt 00:00:04]

} h5 {

[%clk 01:30:28]

} {

[%emt 00:00:09]

} 6. Nf3 {

[%clk 01:28:47]

} {

[%emt 00:00:30]

} Bg4 {

[%clk 01:30:42]

} {

[%emt 00:00:15]

} 7. Be3 {

[%clk 01:27:28]

} {

[%emt 00:01:49]

} Nh6 {

[%clk 01:30:35]

} {

[%emt 00:00:37]

} 8. h3 {

[%clk 01:27:35]

} {

[%emt 00:00:24]

} Nf5 {

[%clk 01:30:25]

} {

[%emt 00:00:39]

} 9. Bf2 {

[%clk 01:28:01]

} {

[%emt 00:00:04]

} Bxf3 {

[%clk 01:30:49]

} {

[%emt 00:00:06]

} 10. Qxf3 {

[%clk 01:28:29]

} {

[%emt 00:00:03]

} h4 {

[%clk 01:31:06]

} {

[%emt 00:00:12]

} 11. Bd3 {

[%clk 01:28:27]

} {

[%emt 00:00:32]

} e6 {

[%clk 01:31:29]

} {

[%emt 00:00:06]

} 12. O-O {

[%clk 01:25:25]

} {

[%emt 00:03:33]

} Be7 {

[%clk 01:28:14]

} {

[%emt 00:03:45]

} 13. b3 {

[%clk 01:24:08]

} {

[%emt 00:01:48]

} a5 {

[%clk 01:23:11]

} {

[%emt 00:05:33]

} 14. Rfd1 {

[%clk 01:20:56]

} {

[%emt 00:03:42]

} Na6 {

[%clk 01:22:10]

} {

[%emt 00:01:31]

} 15. a3 {

[%clk 01:19:28]

} {

[%emt 00:01:58]

} Kf8 {

[%clk 01:15:55]

} {

[%emt 00:06:45]

} 16. Ne2 {

[%clk 01:15:20]

} {

[%emt 00:04:39]

} Nc7 {

[%clk 01:15:20]

} {

[%emt 00:01:04]

} 17. c4 {

[%clk 01:14:17]

} {

[%emt 00:01:34]

} b6 {

[%clk 01:11:02]

} {

[%emt 00:04:48]

} 18. Rdc1 {

[%clk 01:06:56]

} {

[%emt 00:07:52]

} Qd7 {

[%clk 01:04:39]

} {

[%emt 00:06:53]

} 19. cxd5 {

[%clk 00:51:35]

} {

[%emt 00:15:51]

} Nxd5 {

[%clk 00:59:44]

} {

[%emt 00:05:24]

} 20. Be4 {

[%clk 00:50:07]

} {

[%emt 00:01:57]

} Kg7 {

[%clk 00:58:46]

} {

[%emt 00:01:28]

} 21. Rc4 {

[%clk 00:44:03]

} {

[%emt 00:06:35]

} Rac8 {

[%clk 00:53:01]

} {

[%emt 00:06:15]

} 22. Kh2 {

[%clk 00:35:33]

} {

[%emt 00:09:00]

} Qd8 {

[%clk 00:47:47]

} {

[%emt 00:05:45]

} 23. Ra2 {

[%clk 00:32:30]

} {

[%emt 00:03:33]

} Qf8 {

[%clk 00:34:06]

} {

[%emt 00:14:10]

} 24. a4 {

[%clk 00:29:17]

} {

[%emt 00:03:43]

} Qe8 {

[%clk 00:31:51]

} {

[%emt 00:02:44]

} 25. Rac2 {

[%clk 00:27:42]

} {

[%emt 00:02:06]

} Qd7 {

[%clk 00:31:17]

} {

[%emt 00:01:03]

} 26. Rd2 {

[%clk 00:24:55]

} {

[%emt 00:03:17]

} Rb8 {

[%clk 00:22:01]

} {

[%emt 00:09:46]

} 27. Rc1 {

[%clk 00:23:59]

} {

[%emt 00:01:26]

} Ba3 {

[%clk 00:20:05]

} {

[%emt 00:02:27]

} 28. Ra1 {

[%clk 00:23:13]

} {

[%emt 00:01:16]

} Be7 {

[%clk 00:18:12]

} {

[%emt 00:02:22]

} 29. Rc2 {

[%clk 00:23:10]

} {

[%emt 00:00:33]

} Rhc8 {

[%clk 00:18:07]

} {

[%emt 00:00:35]

} 30. Nc3 {

[%clk 00:21:28]

} {

[%emt 00:02:13]

} Nb4 {

[%clk 00:15:28]

} {

[%emt 00:03:08]

} 1/2-1/2